fUSD/lending_fUSD_20260217
["ID","MTS","AMOUNT","RATE_DAILY","PERIOD"]
[405866513,1771372240133,-2579.5763362,6.797e-05,2]
[405866514,1771372240145,-1405.08006027,6.797e-05,2]
[405866515,1771372240174,-3424780.14290144,6.797e-05,2]
[405866516,1771372240183,-2000.0,6.8e-05,2]
[405866517,1771372240192,-600.0,6.8e-05,2]
[405866518,1771372240201,-4326.3306692,6.8e-05,2]
[405866519,1771372240211,-1265.07577452,6.8e-05,2]
[405866520,1771372240220,-4011.112,6.858e-05,2]
[405866521,1771372240230,-387.337,6.858e-05,2]
[405866522,1771372240240,-3000.0,6.9e-05,2]
[405866523,1771372240249,-900.0,6.9e-05,2]
[405866524,1771372240259,-150.99,6.996e-05,2]
[405866525,1771372240269,-9999.99,6.996e-05,2]
[405866526,1771372240278,-299.99,6.996e-05,2]
[405866527,1771372240287,-150.99,6.996e-05,2]
[405866528,1771372240296,-346.58,6.996e-05,2]
[405866529,1771372240306,-994.9,6.996e-05,2]
[405866530,1771372240315,-9999.99,6.996e-05,2]
[405866531,1771372240324,-9999.99,6.996e-05,2]
[405866532,1771372240333,-999.99,6.996e-05,2]
[405866533,1771372240343,-9999.99,6.996e-05,2]
[405866534,1771372240352,-4100.0,7e-05,2]
[405866535,1771372240362,-1200.0,7e-05,2]
[405866536,1771372240371,-250.0,7.37e-05,2]
[405866537,1771372240380,-1680.0,7.474e-05,2]
[405866538,1771372240390,-255.0,7.476e-05,2]
[405866539,1771372240399,-420.0,7.476e-05,2]
[405866540,1771372240408,-412.57102133,8.058e-05,2]
[405866541,1771372240417,-500.0,8.219e-05,2]
[405866542,1771372240427,-542.02555891,8.219e-05,2]
[405866543,1771372240436,-500.0,8.219e-05,2]
[405866544,1771372240445,-500.0,8.219e-05,2]
[405866545,1771372240454,-500.0,8.219e-05,2]
[405866546,1771372240464,-500.0,8.219e-05,2]
[405866547,1771372240473,-500.0,8.219e-05,2]
[405866548,1771372240483,-2351.0,8.222e-05,2]
[405866549,1771372240492,-433.0,8.223e-05,2]
[405866550,1771372240501,-587.0,8.223e-05,2]
[405866551,1771372240511,-500.0,8.223e-05,2]
[405866552,1771372240520,-13457.98,8.235e-05,2]
[405866553,1771372240529,-1287.55,8.32e-05,2]
[405866554,1771372240538,-500.0,8.497e-05,2]
[405866555,1771372240548,-677.0,8.516e-05,2]
[405866556,1771372240557,-166.66,8.684e-05,2]
[405866557,1771372240566,-500.0,8.771e-05,2]
[405866558,1771372240576,-250.0,8.853e-05,2]
[405866559,1771372240585,-1500.0,8.962e-05,2]
[405866560,1771372240594,-166.66,8.971e-05,2]
[405866561,1771372240603,-3292.0,9.044e-05,2]
[405866562,1771372240612,-500.0,9.045e-05,2]
[405866563,1771372240622,-736.0,9.045e-05,2]
[405866564,1771372240631,-227.0,9.045e-05,2]
[405866565,1771372240641,-166.66,9.257e-05,2]
[405866566,1771372240650,-500.0,9.319e-05,2]
[405866567,1771372240659,-301.18,9.424e-05,2]
[405866568,1771372240670,-166.66,9.544e-05,2]
[405866569,1771372240679,-500.0,9.593e-05,2]
[405866570,1771372240688,-166.66,9.831e-05,2]
[405866571,1771372240697,-500.0,9.867e-05,2]
[405866572,1771372240706,-1252.0,9.949e-05,2]
[405866573,1771372240715,-4609.0,9.949e-05,2]
[405866574,1771372240724,-1009.2,0.0001,2]
[405866575,1771372240733,-332.0066979,0.0001,2]
[405866576,1771372240742,-151.0,0.0001,2]
[405866577,1771372240752,-151.0,0.0001,2]
[405866578,1771372240761,-151.0,0.0001,2]
[405866579,1771372240770,-151.0,0.0001,2]
[405866580,1771372240779,-151.0,0.0001,2]
[405866581,1771372240788,-151.0,0.0001,2]
[405866582,1771372240798,-151.0,0.0001,2]
[405866583,1771372240807,-151.0,0.0001,2]
[405866584,1771372240816,-151.0,0.0001,2]
[405866585,1771372240826,-151.0,0.0001,2]
[405866586,1771372240838,-151.0,0.0001,2]
[405866587,1771372240847,-151.0,0.0001,2]
[405866588,1771372240856,-151.0,0.0001,2]
[405866589,1771372240865,-151.0,0.0001,2]
[405866590,1771372240875,-151.0,0.0001,2]
[405866591,1771372240884,-151.0,0.0001,2]
[405866592,1771372240894,-151.0,0.0001,2]
[405866593,1771372240903,-151.0,0.0001,2]
[405866594,1771372240912,-151.0,0.0001,2]
[405866595,1771372240921,-151.0,0.0001,2]
[405866596,1771372240930,-151.0,0.0001,2]
[405866597,1771372240939,-151.0,0.0001,2]
[405866598,1771372240952,-151.0,0.0001,2]
[405866599,1771372240961,-151.0,0.0001,2]
[405866600,1771372240971,-151.0,0.0001,2]
[405866601,1771372240980,-151.0,0.0001,2]
[405866602,1771372240991,-151.0,0.0001,2]
[405866603,1771372241000,-1500.0,0.0001,3]
[405866604,1771372241010,-526.92297095,0.0001,2]
[405866605,1771372241019,-166.66,0.00010117,2]
[405866606,1771372241033,-594.05284132,0.00010141,2]
[405866607,1771372241043,-213.45,0.00010199,2]
[405866608,1771372241053,-1009.2,0.00010274,2]
[405866609,1771372241062,-300.67879472,0.000103,2]
[405866610,1771372241072,-1009.2,0.00010548,2]
[405866611,1771372241081,-1009.2,0.00010822,2]
[405866612,1771372241090,-334.10226741,0.00010856,2]
[405866613,1771372241100,-526.92297095,0.0001089,2]
[405866614,1771372241109,-5100.0,0.000109,3]
[405866615,1771372241118,-3360.30504389,0.000109,2]
[405866616,1771372241127,-3360.30504385,0.000109,2]
[405866617,1771372241136,-3360.30504385,0.000109,2]
[405866618,1771372241145,-6453.0,0.00010943,2]
[405866619,1771372241155,-2129.0,0.00010948,2]
[405866620,1771372241164,-9419.8,0.00010959,2]
[405866621,1771372241173,-151.0,0.00010959,4]
[405866622,1771372241182,-166.66,0.00010959,2]
[405866623,1771372241191,-150.0,0.00010959,2]
[405866624,1771372241201,-166.66,0.00011068,2]
[405866625,1771372241210,-1009.2,0.00011096,2]
[405866626,1771372241219,-18858.15973459,0.00011099,2]
[405866627,1771372241230,-18858.15973457,0.00011099,2]
[405866628,1771372241239,-18858.15973457,0.00011099,2]
[405866629,1771372241248,-18858.15973457,0.00011099,2]
[405866630,1771372241257,-64549.94771309,0.00011099,2]
[405866631,1771372241267,-64549.94771307,0.00011099,2]
[405866632,1771372241276,-64549.94771307,0.00011099,2]
[405866633,1771372241286,-64549.94771307,0.00011099,2]
[405866634,1771372241297,-300.0,0.00011137,7]
[405866635,1771372241307,-166.66,0.00011178,2]
[405866636,1771372241316,-18858.15973457,0.00011278,2]
[405866637,1771372241326,-166.66,0.00011288,2]
[405866638,1771372241336,-1009.2,0.0001137,2]
[405866639,1771372241345,-166.66,0.00011397,2]
[405866640,1771372241355,-3360.30504385,0.000115,2]
[405866641,1771372241364,-166.66,0.00011507,2]
[405866642,1771372241374,-1009.2,0.00011644,2]
[405866643,1771372241383,-64549.94771307,0.00011708,2]
[405866644,1771372241393,-1009.2,0.00011918,2]
[405866645,1771372241403,-9035.0,0.00012038,2]
[405866646,1771372241413,-3620.0,0.00012042,2]
[405866647,1771372241422,-2823.55,0.00012087,2]
[405866648,1771372241431,-214297.0,0.000121,2]
[405866649,1771372241440,-164.61380668,0.00012173,2]
[405866650,1771372241449,-500.0,0.00012173,2]
[405866651,1771372241459,-616.56100589,0.00012173,2]
[405866652,1771372241468,-623.71743587,0.00012173,2]
[405866653,1771372241478,-500.0,0.00012173,2]
[405866654,1771372241487,-166.78412047,0.00012173,2]
[405866655,1771372241496,-500.0,0.00012173,2]
[405866656,1771372241505,-500.0,0.00012173,2]
[405866657,1771372241515,-344.71223806,0.00012173,2]
[405866658,1771372241523,-500.0,0.00012173,2]
[405866659,1771372241533,-500.0,0.00012173,2]
[405866660,1771372241542,-500.0,0.00012173,2]
[405866661,1771372241551,-500.0,0.00012173,2]
[405866662,1771372241560,-500.0,0.00012173,2]
[405866663,1771372241569,-500.0,0.00012173,2]
[405866664,1771372241579,-163.58520611,0.00012173,2]
[405866665,1771372241588,-500.0,0.00012173,2]
[405866666,1771372241597,-500.0,0.00012173,2]
[405866667,1771372241606,-500.0,0.00012173,2]
[405866668,1771372241615,-500.0,0.00012173,2]
[405866669,1771372241625,-1009.2,0.00012192,2]
[405866670,1771372241634,-4326.33066919,0.000123,2]
[405866671,1771372241915,-332.0066979,0.00012398,2]
[405866672,1771372241925,-18858.15973457,0.00012422,2]
[405866673,1771372241934,-1009.2,0.00012466,2]
[405866674,1771372241943,-5530.0,0.000126,3]
[405866675,1771372241956,-1000.0,0.00012721,2]
[405866676,1771372241966,-306.86059886,0.00012721,2]
[405866677,1771372241976,-1000.0,0.00012721,2]
[405866678,1771372241985,-1000.0,0.00012721,2]
[405866679,1771372241995,-1000.0,0.00012721,2]
[405866680,1771372242004,-1000.0,0.00012721,2]
[405866681,1771372242014,-1000.0,0.00012721,2]
[405866682,1771372242024,-1000.0,0.00012721,2]
[405866683,1771372242034,-1013.76878479,0.00012721,2]
[405866684,1771372242043,-432.93855102,0.00012721,2]
[405866685,1771372242052,-500.0,0.00012721,2]
[405866686,1771372242062,-1000.0,0.00012721,2]
[405866687,1771372242071,-1000.0,0.00012721,2]
[405866688,1771372242081,-1000.0,0.00012721,2]
[405866689,1771372242092,-1009.2,0.0001274,2]
[405866690,1771372242102,-64549.94771307,0.00012936,2]
[405866691,1771372242112,-1009.20002581,0.00013014,2]
[405866692,1771372242121,-1000.0,0.00013063,2]
[405866693,1771372242130,-3360.30504385,0.000131,2]
[405866694,1771372242139,-5530.0,0.000131,5]
[405866695,1771372242149,-1000.0,0.00013208,2]
[405866696,1771372242158,-891.0,0.00013242,2]
[405866697,1771372242167,-653.0,0.00013245,2]
[405866698,1771372242176,-1000.0,0.00013265,2]
[405866699,1771372242192,-744.95097778,0.00013268,2]
[405866700,1771372242202,-503.8182606,0.00013268,2]
[405866701,1771372242211,-592.40967882,0.00013268,2]
[405866702,1771372242221,-1500.0,0.00013268,2]
[405866703,1771372242230,-1500.0,0.00013268,2]
[405866704,1771372242240,-1500.0,0.00013268,2]
[405866705,1771372242249,-1500.0,0.00013268,2]
[405866706,1771372242258,-226.6191256,0.00013268,2]
[405866707,1771372242267,-1500.0,0.00013268,2]
[405866708,1771372242277,-1500.0,0.00013268,2]
[405866709,1771372242286,-1000.0,0.00013307,2]
[405866710,1771372242295,-1000.0,0.00013487,2]
[405866711,1771372242304,-173.57638878,0.00013488,2]
[405866712,1771372242313,-160.0,0.00013488,2]
[405866713,1771372242323,-18858.15973457,0.00013567,2]
[405866714,1771372242332,-500.0,0.00013698,2]
[405866715,1771372242341,-500.0,0.00013698,2]
[405866716,1771372242350,-500.0,0.00013698,2]
[405866717,1771372242359,-500.0,0.00013698,2]
[405866718,1771372242368,-500.0,0.00013698,2]
[405866719,1771372242378,-500.0,0.00013698,2]
[405866720,1771372242387,-500.0,0.00013698,2]
[405866721,1771372242396,-500.0,0.00013698,2]
[405866722,1771372242406,-500.0,0.00013698,2]
[405866723,1771372242415,-500.0,0.00013698,2]
[405866724,1771372242424,-500.0,0.00013698,2]
[405866725,1771372242433,-500.0,0.00013698,2]
[405866726,1771372242443,-500.0,0.00013698,2]
[405866727,1771372242452,-500.0,0.00013698,2]
[405866728,1771372242461,-500.0,0.00013698,2]
[405866729,1771372242470,-500.0,0.00013698,2]
[405866730,1771372242480,-500.0,0.00013698,2]
[405866731,1771372242489,-500.0,0.00013698,2]
[405866732,1771372242498,-500.0,0.00013698,2]
[405866733,1771372242507,-500.0,0.00013698,2]
[405866734,1771372242517,-500.0,0.00013698,2]
[405866735,1771372242526,-500.0,0.00013698,2]
[405866736,1771372242535,-500.0,0.00013698,2]
[405866737,1771372242545,-500.0,0.00013698,2]
[405866738,1771372242554,-500.0,0.00013698,2]
[405866739,1771372242563,-500.0,0.00013698,2]
[405866740,1771372242572,-500.0,0.00013698,2]
[405866741,1771372242581,-500.0,0.00013698,2]
[405866742,1771372242590,-500.0,0.00013698,2]
[405866743,1771372242599,-500.0,0.00013698,2]
[405866744,1771372242609,-500.0,0.00013698,2]
[405866745,1771372242617,-328.79,0.00013698,2]
[405866746,1771372242627,-500.0,0.00013698,2]
[405866747,1771372242636,-500.0,0.00013698,2]
[405866748,1771372242645,-500.0,0.00013698,2]
[405866749,1771372242654,-500.0,0.00013698,2]
[405866750,1771372242663,-500.0,0.00013698,2]
[405866751,1771372242672,-500.0,0.00013698,2]
[405866752,1771372242681,-500.0,0.00013698,2]
[405866754,1771372242690,-500.0,0.00013698,2]
[405866756,1771372242699,-500.0,0.00013698,2]
[405866758,1771372242708,-500.0,0.00013698,2]
[405866760,1771372242717,-500.0,0.00013698,2]
[405866761,1771372242726,-600.82615766,0.00013698,2]
[405866763,1771372242735,-500.0,0.00013698,2]
[405866765,1771372242744,-500.0,0.00013698,2]
[405866766,1771372242753,-500.0,0.00013698,2]
[405866767,1771372242762,-500.0,0.00013698,2]
[405866768,1771372242771,-500.0,0.00013698,2]
[405866769,1771372242780,-500.0,0.00013698,2]
[405866770,1771372242789,-500.0,0.00013698,2]
[405866771,1771372242798,-2052.7,0.00013698,2]
[405866772,1771372242807,-2052.7,0.00013698,2]
[405866773,1771372242816,-2052.7,0.00013698,2]
[405866774,1771372242825,-2052.7,0.00013698,2]
[405866775,1771372242834,-2052.7,0.00013698,2]
[405866776,1771372242843,-2052.7,0.00013698,2]
[405866777,1771372242852,-2052.7,0.00013698,2]
[405866778,1771372242861,-2052.7,0.00013698,2]
[405866779,1771372242870,-2052.7,0.00013698,2]
[405866780,1771372242879,-2052.7,0.00013698,2]
[405866781,1771372242887,-2052.7,0.00013698,2]
[405866782,1771372242897,-2052.7,0.00013698,2]
[405866783,1771372242906,-2052.7,0.00013698,2]
[405866784,1771372242915,-2052.7,0.00013698,2]
[405866785,1771372242923,-2052.7,0.00013698,2]
[405866786,1771372242933,-2052.7,0.00013698,2]
[405866787,1771372242942,-2052.7,0.00013698,2]
[405866788,1771372242954,-500.0,0.00013698,2]
[405866789,1771372242963,-500.0,0.00013698,2]
[405866790,1771372242973,-500.0,0.00013698,2]
[405866791,1771372242982,-500.0,0.00013698,2]
[405866792,1771372242991,-500.0,0.00013698,2]
[405866793,1771372243001,-500.0,0.00013698,2]
[405866794,1771372243011,-500.0,0.00013698,2]
[405866795,1771372243020,-500.0,0.00013698,2]
[405866796,1771372243030,-500.0,0.00013698,2]
[405866797,1771372243039,-500.0,0.00013698,2]
[405866798,1771372243049,-500.0,0.00013698,2]
[405866799,1771372243058,-500.0,0.00013698,2]
[405866800,1771372243067,-500.0,0.00013698,2]
[405866801,1771372243077,-500.0,0.00013698,2]
[405866802,1771372243086,-500.0,0.00013698,2]
[405866803,1771372243096,-500.0,0.00013698,2]
[405866804,1771372243106,-500.0,0.00013698,2]
[405866805,1771372243115,-500.0,0.00013698,2]
[405866806,1771372243124,-500.0,0.00013698,2]
[405866807,1771372243134,-500.0,0.00013698,2]
[405866808,1771372243143,-500.0,0.00013698,2]
[405866809,1771372243152,-615.5,0.00013698,2]
[405866810,1771372243162,-500.0,0.00013698,2]
[405866811,1771372243170,-500.0,0.00013698,2]
[405866812,1771372243180,-500.0,0.00013698,2]
[405866813,1771372243189,-500.0,0.00013698,2]
[405866814,1771372243199,-500.0,0.00013698,2]
[405866815,1771372243208,-500.0,0.00013698,2]
[405866816,1771372243217,-500.0,0.00013698,2]
[405866817,1771372243226,-494.24526323,0.00013698,2]
[405866818,1771372243236,-500.0,0.00013698,2]
[405866819,1771372243245,-500.0,0.00013698,2]
[405866820,1771372243254,-500.0,0.00013698,2]
[405866821,1771372243263,-191.17661539,0.00013698,2]
[405866822,1771372243272,-500.0,0.00013698,2]
[405866823,1771372243281,-500.0,0.00013698,2]
[405866824,1771372243290,-500.0,0.00013698,2]
[405866825,1771372243299,-500.0,0.00013698,2]
[405866826,1771372243308,-500.0,0.00013698,2]
[405866827,1771372243318,-500.0,0.00013698,2]
[405866828,1771372243327,-500.0,0.00013698,2]
[405866829,1771372243336,-500.0,0.00013698,2]
[405866830,1771372243346,-500.0,0.00013698,2]
[405866831,1771372243356,-500.0,0.00013698,2]
[405866832,1771372243365,-500.0,0.00013698,2]
[405866833,1771372243375,-500.0,0.00013698,2]
[405866834,1771372243384,-500.0,0.00013698,2]
[405866835,1771372243393,-500.0,0.00013698,2]
[405866836,1771372243403,-500.0,0.00013698,2]
[405866837,1771372243412,-474.03942024,0.00013698,2]
[405866838,1771372243422,-500.0,0.00013698,2]
[405866839,1771372243432,-500.0,0.00013698,2]
[405866840,1771372243441,-500.0,0.00013698,2]
[405866841,1771372243450,-505.58518338,0.00013698,2]
[405866842,1771372243460,-500.0,0.00013698,2]
[405866843,1771372243469,-172.09485914,0.00013698,2]
[405866844,1771372243479,-649.58,0.00013698,2]
[405866845,1771372243488,-649.58,0.00013698,2]
[405866846,1771372243497,-649.58,0.00013698,2]
[405866847,1771372243506,-649.58,0.00013698,2]
[405866848,1771372243515,-649.58,0.00013698,2]
[405866849,1771372243524,-649.58,0.00013698,2]
[405866850,1771372243533,-649.58,0.00013698,2]
[405866851,1771372243543,-649.58,0.00013698,2]
[405866852,1771372243552,-649.58,0.00013698,2]
[405866853,1771372243561,-649.58,0.00013698,2]
[405866854,1771372243570,-649.58,0.00013698,2]
[405866855,1771372243580,-649.58,0.00013698,2]
[405866856,1771372243589,-649.58,0.00013698,2]
[405866857,1771372243604,-649.58,0.00013698,2]
[405866858,1771372243613,-649.58,0.00013698,2]
[405866859,1771372243623,-649.58,0.00013698,2]
[405866860,1771372243632,-649.58,0.00013698,2]
[405866861,1771372243642,-1180.75,0.00013698,2]
[405866862,1771372243652,-1180.75,0.00013698,2]
[405866863,1771372243661,-1180.75,0.00013698,2]
[405866864,1771372243671,-1180.75,0.00013698,2]
[405866865,1771372243680,-1180.75,0.00013698,2]
[405866866,1771372243690,-1180.75,0.00013698,2]
[405866867,1771372243699,-1180.75,0.00013698,2]
[405866868,1771372243708,-1180.75,0.00013698,2]
[405866869,1771372243717,-1180.75,0.00013698,2]
[405866870,1771372243726,-1180.75,0.00013698,2]
[405866871,1771372243735,-1180.75,0.00013698,2]
[405866872,1771372243744,-1180.75,0.00013698,2]
[405866873,1771372243754,-1180.75,0.00013698,2]
[405866874,1771372243763,-1180.75,0.00013698,2]
[405866875,1771372243772,-1180.75,0.00013698,2]
[405866876,1771372243782,-1180.75,0.00013698,2]
[405866877,1771372243791,-1180.75,0.00013698,2]
[405866878,1771372243800,-528.4390448,0.00013698,2]
[405866879,1771372243809,-500.0,0.00013698,2]
[405866880,1771372243819,-500.0,0.00013698,2]
[405866881,1771372243828,-500.0,0.00013698,2]
[405866882,1771372243838,-500.0,0.00013698,2]
[405866883,1771372243847,-586.00467181,0.00013698,2]
[405866884,1771372243857,-500.0,0.00013698,2]
[405866885,1771372243866,-500.0,0.00013698,2]
[405866886,1771372243875,-500.0,0.00013698,2]
[405866887,1771372243884,-500.0,0.00013698,2]
[405866888,1771372243893,-500.0,0.00013698,2]
[405866889,1771372243903,-321.35543779,0.00013698,2]
[405866890,1771372243912,-500.0,0.00013698,2]
[405866891,1771372243921,-500.0,0.00013698,2]
[405866892,1771372243930,-500.0,0.00013698,2]
[405866893,1771372243939,-500.0,0.00013698,2]
[405866894,1771372243951,-500.0,0.00013698,2]
[405866895,1771372243961,-500.0,0.00013698,2]
[405866896,1771372243971,-500.0,0.00013698,2]
[405866897,1771372243980,-500.0,0.00013698,2]
[405866898,1771372243991,-213.96435398,0.00013698,2]
[405866899,1771372244001,-500.0,0.00013698,2]
[405866900,1771372244011,-500.0,0.00013698,2]
[405866901,1771372244020,-500.0,0.00013698,2]
[405866902,1771372244031,-500.0,0.00013698,2]
[405866903,1771372244039,-500.0,0.00013698,2]
[405866904,1771372244049,-500.0,0.00013698,2]
[405866905,1771372244057,-500.0,0.00013698,2]
[405866906,1771372244066,-500.0,0.00013698,2]
[405866907,1771372244076,-500.0,0.00013698,2]
[405866908,1771372244085,-500.0,0.00013698,2]
[405866909,1771372244095,-500.0,0.00013698,2]
[405866910,1771372244104,-500.0,0.00013698,2]
[405866911,1771372244113,-500.0,0.00013698,2]
[405866912,1771372244123,-592.61,0.00013698,2]
[405866913,1771372244132,-712.99,0.00013699,2]
[405866914,1771372244142,-200.0,0.00013699,2]
[405866915,1771372244151,-1000.0,0.00013747,2]
[405866916,1771372244160,-1000.0,0.00013787,2]
[405866917,1771372244170,-500.0,0.00013799,2]
[405866918,1771372244180,-2052.7,0.00013799,2]
[405866919,1771372244189,-500.0,0.00013799,2]
[405866920,1771372244199,-649.58,0.00013799,2]
[405866921,1771372244208,-1180.75,0.00013799,2]
[405866922,1771372244218,-2000.0,0.00013816,2]
[405866923,1771372244227,-2000.0,0.00013816,2]
[405866924,1771372244237,-2000.0,0.00013816,2]
[405866925,1771372244246,-2000.0,0.00013816,2]
[405866926,1771372244255,-2000.0,0.00013816,2]
[405866927,1771372244265,-2000.0,0.00013816,2]
[405866928,1771372244274,-500.0,0.00013873,2]
[405866929,1771372244283,-500.0,0.00013873,2]
[405866930,1771372244292,-335.00019172,0.00013873,2]
[405866931,1771372244301,-500.0,0.00013873,2]
[405866932,1771372244311,-500.0,0.00013873,2]
[405866933,1771372244320,-500.0,0.00013873,2]
[405866934,1771372244329,-500.0,0.00013873,2]
[405866935,1771372244339,-500.0,0.00013873,2]
[405866936,1771372244348,-500.0,0.00013873,2]
[405866937,1771372244358,-500.0,0.00013873,2]
[405866938,1771372244367,-500.0,0.00013873,2]
[405866939,1771372244377,-500.0,0.00013873,2]
[405866940,1771372244386,-500.0,0.00013873,2]
[405866941,1771372244395,-501.23450591,0.00013873,2]
[405866942,1771372244405,-500.29634492,0.00013873,2]
[405866943,1771372244415,-500.0,0.00013873,2]
[405866944,1771372244424,-161.95965132,0.00013873,2]
[405866945,1771372244434,-500.0,0.00013873,2]
[405866946,1771372244443,-500.0,0.00013873,2]
[405866947,1771372244452,-500.0,0.00013873,2]
[405866948,1771372244462,-500.0,0.00013873,2]
[405866949,1771372244472,-500.0,0.00013873,2]
[405866950,1771372244481,-500.0,0.00013873,2]
[405866951,1771372244491,-500.0,0.00013873,2]
[405866952,1771372244500,-163.87964352,0.00013873,2]
[405866953,1771372244509,-500.0,0.00013873,2]
[405866954,1771372244518,-500.0,0.00013873,2]
[405866955,1771372244526,-525.66819458,0.00013873,2]
[405866956,1771372244536,-500.0,0.00013873,2]
[405866957,1771372244545,-162.40112722,0.00013873,2]
[405866958,1771372244555,-161.87499248,0.00013873,2]
[405866959,1771372244564,-500.0,0.00013873,2]
[405866960,1771372244573,-505.14943602,0.00013873,2]
[405866961,1771372244582,-514.27467488,0.00013873,2]
[405866962,1771372244592,-500.0,0.00013873,2]
[405866963,1771372244601,-500.0,0.00013873,2]
[405866964,1771372244610,-160.44342054,0.00013873,2]
[405866965,1771372244619,-500.0,0.00013873,2]
[405866966,1771372244629,-500.0,0.00013873,2]
[405866967,1771372244637,-561.11210647,0.00013873,2]
[405866968,1771372244647,-523.64780308,0.00013873,2]
[405866969,1771372244656,-500.0,0.00013873,2]
[405866970,1771372244666,-500.0,0.00013873,2]
[405866971,1771372244675,-501.43225284,0.00013873,2]
[405866972,1771372244684,-500.0,0.00013873,2]
[405866973,1771372244693,-500.0,0.00013873,2]
[405866974,1771372244702,-500.0,0.00013873,2]
[405866975,1771372244711,-550.905089,0.00013873,2]
[405866976,1771372244719,-597.93872342,0.00013873,2]
[405866977,1771372244728,-500.0,0.00013873,2]
[405866978,1771372244737,-160.29464371,0.00013873,2]
[405866979,1771372244746,-500.0,0.00013873,2]
[405866980,1771372244755,-559.34470409,0.00013873,2]
[405866981,1771372244765,-500.0,0.00013873,2]
[405866982,1771372244773,-500.93096914,0.00013873,2]
[405866983,1771372244783,-503.17452108,0.00013873,2]
[405866984,1771372244792,-501.14207764,0.00013873,2]
[405866985,1771372244801,-377.76526068,0.00013873,2]
[405866986,1771372244811,-500.0,0.00013873,2]
[405866987,1771372244820,-500.0,0.00013873,2]
[405866988,1771372244830,-500.0,0.00013873,2]
[405866989,1771372244839,-500.0,0.00013873,2]
[405866990,1771372244848,-285.23122629,0.00013873,2]
[405866991,1771372244857,-301.18,0.00013925,2]
[405866992,1771372244866,-1000.0,0.00013941,2]
[405866993,1771372244876,-64549.94771307,0.00014163,2]
[405866994,1771372244885,-1000.0,0.00014166,2]
[405866995,1771372244896,-1000.0,0.00014299,2]
[405866996,1771372244906,-1000.0,0.00014313,2]
[405866997,1771372244915,-2500.0,0.00014364,2]
[405866998,1771372244924,-1464.93718194,0.00014364,2]
[405866999,1771372244934,-2500.0,0.00014364,2]
[405867000,1771372244943,-2500.0,0.00014364,2]
[405867001,1771372244955,-738.87048767,0.00014364,2]
[405867002,1771372244964,-691.88472966,0.00014364,2]
[405867003,1771372244973,-1000.0,0.00014402,2]
[405867004,1771372244982,-502.22718587,0.00014421,2]
[405867005,1771372244992,-1000.0,0.00014421,2]
[405867006,1771372245001,-1001.35605949,0.00014421,2]
[405867007,1771372245010,-1000.0,0.00014421,2]
[405867008,1771372245019,-1009.85751715,0.00014421,2]
[405867009,1771372245030,-1000.0,0.00014421,2]
[405867010,1771372245039,-504.09468333,0.00014421,2]
[405867011,1771372245048,-501.86536618,0.00014421,2]
[405867012,1771372245057,-1000.0,0.00014421,2]
[405867013,1771372245066,-651.60051968,0.00014421,2]
[405867014,1771372245075,-1000.0,0.00014421,2]
[405867015,1771372245084,-565.44208777,0.00014421,2]
[405867016,1771372245093,-1002.86775924,0.00014421,2]
[405867017,1771372245102,-1000.0,0.00014421,2]
[405867018,1771372245112,-1000.0,0.00014421,2]